Cogmind - Beta 17.1 @@@ ROGUE MODE // 2026.09.11 @ 21:28:36 Player: Somberlain Result: Destroyed by S-27 Virus with Autogun Performance ------------- Evolutions (5) 2500 Regions Visited (16) 3200 Robots Destroyed (108) 540 Value Destroyed (4691) 4691 Prototype IDs (14) 280 Alien Tech Used (0) 0 Bonus (3390) 3390 TOTAL SCORE: 14601 Bonus ------- Follower Combat Kills 90 Entered Garrisons 800 Used RIF Installer 2500 Cogmind --------- Core Integrity 0/1000 Matter 300/300 Energy 100/100 System Corruption 2% Temperature Cool (0) Movement Core (50) Location -4/Proximity Caves Parts ------- > --- POWER (2) -------- (None) > --- PROPULSION (4) --- (None) > --- UTILITY (9) ------ Advanced Signal Interpreter Advanced Melee Analysis Suite Improved Target Analyzer System Shield > --- WEAPON (2) ------- (None) > --- INVENTORY (5) ---- Micro Fission Core Experimental Reaction Control System Recalibrator Remote Datajack Improved Remote Datajack Peak State ------------ > --- POWER ------------ Micro Fission Core Micro Fission Core > --- PROPULSION ------- Impulse Thruster Impulse Thruster Impulse Thruster Impulse Thruster > --- UTILITY ---------- Advanced Melee Analysis Suite Advanced Melee Analysis Suite Advanced Melee Analysis Suite Advanced Melee Analysis Suite Improved Target Analyzer Centrium Light Armor Plating Centrium Light Armor Plating Hacking Suite System Shield > --- WEAPON ----------- Falx Plasma Lance > --- INVENTORY -------- Field Propulsion Drive Field Propulsion Drive Microactuators Experimental Reaction Control System Remote Datajack [Rating: 105] Favorites ----------- Power Micro Fission Core Engine Light Ion Engine Power Core Micro Fission Core Reactor Light Quantum Reactor Propulsion Improved Flight Unit Leg Aluminum Leg Flight Unit Improved Flight Unit Utility System Shield Device Microactuators Storage Medium Storage Unit Processor Advanced Melee Analysis Suite Hackware System Shield Protection Centrium Light Armor Plating Weapon Chainsword Energy Gun Medium Laser Energy Cannon Improved EM Pulse Cannon Ballistic Gun Assault Rifle Ballistic Cannon Advanced Assault Cannon Special Weapon Remote Datajack Impact Weapon Heavy Hammer Slashing Weapon Chainsword Piercing Weapon Plasma Lance Build | -11 -10 -10 -9 -8 -8 -8 -8 -7 -7 -6 -6 -5 -5 -5 -5 -4 ------- Run | Yrd Mat Min Mat Mat Gar Mat Gar Fac Gar Fac Gar Fac Upp Upp War Pro Slots Evolved 10 | . . . 2 2 . . . 2 . 2 . 2 . . . . Power 1 | . . . . . . . . . . . . 1 . . . . Propulsion 2 | . . . . 1 . . . . . . . 1 . . . . Utility 7 | . . . 2 1 . . . 2 . 2 . . . . . . Weapon . | . . . . . . . . . . . . . . . . . Parts Attached 132 | 6 3 3 10 8 9 . 5 18 . 11 12 34 13 . . . Power 25 | 1 . . 1 2 2 . 1 2 . 2 1 11 2 . . . Engine 10 | 1 . . 1 1 1 . 1 . . . . 5 . . . . Core 13 | . . . . 1 1 . . 2 . 2 . 5 2 . . . Reactor 2 | . . . . . . . . . . . 1 1 . . . . Propulsion 38 | 2 . 2 3 2 2 . 1 2 . 4 2 10 8 . . . Treads . | . . . . . . . . . . . . . . . . . Leg 2 | 2 . . . . . . . . . . . . . . . . Wheel . | . . . . . . . . . . . . . . . . . Hover . | . . . . . . . . . . . . . . . . . Flight 36 | . . 2 3 2 2 . 1 2 . 4 2 10 8 . . . Utility 50 | 1 2 1 5 2 5 . 3 6 . 4 8 11 2 . . . Device 12 | . 1 . 1 1 2 . 1 1 . 1 2 2 . . . . Storage 2 | 1 1 . . . . . . . . . . . . . . . Processor 14 | . . 1 . 1 . . 1 3 . . . 6 2 . . . Hackware 17 | . . . 4 . 1 . 1 2 . 2 4 3 . . . . Protection 5 | . . . . . 2 . . . . 1 2 . . . . . Artifact . | . . . . . . . . . . . . . . . . . Weapon 19 | 2 1 . 1 2 . . . 8 . 1 1 2 1 . . . Energy Gun 2 | 1 . . 1 . . . . . . . . . . . . . Energy Cannon 1 | . . . . . . . . 1 . . . . . . . . Ballistic Gun 1 | 1 . . . . . . . . . . . . . . . . Ballistic Cannon 1 | . . . . . . . . 1 . . . . . . . . Launcher . | . . . . . . . . . . . . . . . . . Special Weapon 2 | . . . . . . . . . . 1 . . 1 . . . Impact Weapon 2 | . 1 . . . . . . 1 . . . . . . . . Slashing Weapon 9 | . . . . 2 . . . 5 . . . 2 . . . . Piercing Weapon 1 | . . . . . . . . . . . 1 . . . . . Special Melee Weapon . | . . . . . . . . . . . . . . . . . Unidentified Prototypes 9 | . . . 3 1 . . . . . . 3 2 . . . . Parts Lost 64 | . . 1 2 . 7 . 2 4 2 3 9 13 13 . 6 2 Power 9 | . . . 1 . 1 . . 1 . . 1 4 . . 1 . Propulsion 24 | . . 1 . . 2 . 1 1 1 1 3 3 8 . 2 1 Utility 26 | . . . 1 . 3 . . 2 1 2 4 6 4 . 2 1 Weapon 5 | . . . . . 1 . 1 . . . 1 . 1 . 1 . Highest Loss Streak 7 | . . 1 1 . 4 . 1 2 1 1 7 5 6 . 6 2 To Critical Strikes . | . . . . . . . . . . . . . . . . . Average Backups 4 | . 3 8 4 4 4 5 4 4 4 4 4 4 4 4 4 4 Power . | . . . . . . 1 . . . . . . . 1 1 1 Propulsion . | . . 1 1 2 . . . . . . . . . . . . Utility 3 | . 2 4 2 2 3 4 4 3 3 3 3 2 2 1 1 1 Weapon . | . . 1 . . . . . . . . . . . . . . Tool/Special . | . . . . . . . . . . . . . . . . . Unused Backups 12 | . . 3 2 . 1 . . 1 . 2 1 1 . . . 1 Power . | . . . . . . . . . . . . . . . . . Propulsion 2 | . . . 1 . 1 . . . . . . . . . . . Utility 9 | . . 2 1 . . . . 1 . 2 1 1 . . . 1 Weapon 1 | . . 1 . . . . . . . . . . . . . . Tool/Special . | . . . . . . . . . . . . . . . . . Average Slot Usage (%) 86 | . 97 99 58 95 85 90 88 86 96 91 83 89 89 76 61 39 Engine 2 | . 14 14 1 . 2 9 9 2 . . . . . . . . Core 3 | . . . . 6 5 . . 2 6 2 2 4 10 5 2 . Leg 2 | . 28 25 . . . . . . . . . . . . . . Flight 18 | . . 2 19 26 26 27 26 19 21 16 17 21 20 23 17 10 Device 4 | . 11 . . 8 8 9 8 5 . 6 4 3 2 5 3 . Storage 1 | . 14 14 . . . . . . . . . . . . . . Processor 15 | . . 13 7 8 5 . . 17 23 20 11 16 28 29 27 22 Hackware 20 | . . . 13 27 22 27 32 27 29 32 30 18 10 5 5 5 Protection 3 | . . . . . 4 9 3 . . . 3 9 7 . . . Energy Gun 2 | . 14 14 4 4 . . . 1 . . . . . . . . Ballistic Gun 1 | . 11 13 . . . . . . . . . . . . . . Slashing Weapon 5 | . . . . 4 10 9 7 5 15 12 7 3 . . . . Piercing Weapon 1 | . . . . . . . . . . . 1 4 5 5 3 . Peak Build Rating 105 | 6 8 8 25 34 34 32 31 48 48 55 69 105 104 58 58 32 Average Rating 45 | 4 7 7 11 30 29 31 29 37 46 49 49 77 87 58 45 31 On Entrance 35 | . 6 8 6 22 34 32 31 27 48 41 51 52 104 58 58 31 Avg Prop Armor Cover (%) 4 | . . 3 . 3 . . . 5 . 4 . 6 2 . . . Naked Turns . | . . . . . . . . . . . . . . . . . Heaviest Build 26 | 14 21 19 8 12 15 14 11 13 12 15 15 26 23 10 10 . Greatest Support 30 | 20 20 20 10 15 15 15 15 17 17 15 16 28 30 20 20 12 Greatest Overweight (x) 2 | . 1 1 . . . . . 1 1 . . 1 2 . . . Average Overweight (x) . | . . . . . . . . . . . . . . . . . Largest Inventory Capacity 10 | 8 10 10 5 5 5 5 5 5 5 5 5 5 5 5 5 5 Average Capacity 5 | 7 9 9 5 5 5 5 5 5 5 5 5 5 5 5 5 5 Most Carried 9 | 1 7 9 5 5 5 5 5 5 5 5 5 5 5 4 4 5 Average Carried 4 | . 3 8 4 4 4 5 4 4 4 4 4 4 4 4 4 4 Final Capacity 10 | 8 10 5 5 5 5 5 5 5 5 5 5 5 5 5 5 5 Final Carried 7 | . 7 5 5 5 5 5 5 4 5 4 5 5 4 4 4 5 Class Distribution -------------------- 33% | Hacker-Sprinter 31% | Hacker-Mutant 17% | Mutant 11% | Hacker-Gladiator Dominant Class ---------------- Mutant | -10/Materials Mutant | -10/Mines Mutant | -9/Materials Hacker-Mutant | -8/Materials Hacker-Mutant | -8/Garrison Hacker-Mutant | -8/Materials Hacker-Mutant | -8/Garrison Hacker-Mutant | -7/Factory Hacker-Gladiator | -7/Garrison Hacker-Sprinter | -6/Factory Hacker-Sprinter | -6/Garrison Hacker-Sprinter | -5/Factory Hacker-Sprinter | -5/Upper Caves Scavenger-Sprinter | -5/Upper Caves Mutant | -5/Warlord Mutant | -4/Proximity Caves Resources | -11 -10 -10 -9 -8 -8 -8 -8 -7 -7 -6 -6 -5 -5 -5 -5 -4 ----------- Run | Yrd Mat Min Mat Mat Gar Mat Gar Fac Gar Fac Gar Fac Upp Upp War Pro Matter Collected 2260 | 258 66 63 160 . 270 . 51 98 169 165 199 578 166 10 . 7 Remotely . | . . . . . . . . . . . . . . . . . Salvage Created 5108 | . 102 125 206 . 487 . 33 158 402 794 140 2170 491 . . . Parts 250 | . 2 10 4 . 24 . 4 14 25 36 5 89 37 . . . Haulers Intercepted 4 | . . . 1 . . . . . . 1 . 2 . . . . Recyclers Shooed . | . . . . . . . . . . . . . . . . . Parts Field Recycled . | . . . . . . . . . . . . . . . . . Retrieved Matter . | . . . . . . . . . . . . . . . . . Parts Self-Destructed 31 | . . . . . . . . . . . . . 31 . . . Prevented 1 | . . . . . . . . . . . . . 1 . . . Parts Restored . | . . . . . . . . . . . . . . . . . Kills | -11 -10 -10 -9 -8 -8 -8 -8 -7 -7 -6 -6 -5 -5 -5 -5 -4 ------- Run | Yrd Mat Min Mat Mat Gar Mat Gar Fac Gar Fac Gar Fac Upp Upp War Pro Combat Hostiles Destroyed 79 | . 2 4 3 . 11 . 2 1 9 7 3 23 14 . . . Melee 71 | . . . 1 . 11 . 2 1 9 7 3 23 14 . . . Guns 6 | . 2 4 . . . . . . . . . . . . . . Classes Destroyed 13 | . 2 2 3 . 2 . . 1 . 1 2 . . . . . Tunneler 1 | . . 1 . . . . . . . . . . . . . . Hauler 4 | . . . 1 . . . . . . 1 . 2 . . . . Recycler 5 | . . . . . . . . . . 2 . 3 . . . . Operator 7 | . . . 1 . . . . 2 . 1 . 3 . . . . Watcher 12 | . 1 . 1 . . . . 3 1 2 . 4 . . . . Swarmer 31 | . . 3 . . 6 . 2 . 3 4 . 3 10 . . . Saboteur 1 | . . . . . . . . . . . 1 . . . . . Grunt 24 | . 2 1 1 . 3 . . . 2 3 . 12 . . . . Brawler 2 | . . . . . 1 . . . . . . 1 . . . . Sentry 5 | . . . 2 . . . . . 1 . . 2 . . . . Hunter 2 | . . . . . 1 . . . . . . 1 . . . . Programmer 12 | . . . . . . . . 1 3 . . 4 4 . . . Striker 2 | . . . . . . . . . . . 2 . . . . . Best Kill Streak 6 | . 1 4 2 . 6 . 2 2 3 4 1 6 5 . . . Combat Bots Only 6 | . 1 4 1 . 6 . 2 1 3 3 1 4 5 . . . Max Kills in Single Turn 2 | . 1 2 1 . 1 . 1 1 1 1 1 1 1 . . . Gunslinging . | . . . . . . . . . . . . . . . . . Exploded . | . . . . . . . . . . . . . . . . . Melee 1 | . . . 1 . 1 . 1 1 1 1 1 1 1 . . . Uniques/NPCs Destroyed . | . . . . . . . . . . . . . . . . . Combat | -11 -10 -10 -9 -8 -8 -8 -8 -7 -7 -6 -6 -5 -5 -5 -5 -4 -------- Run | Yrd Mat Min Mat Mat Gar Mat Gar Fac Gar Fac Gar Fac Upp Upp War Pro Hostile Shots Fired 660 | . 15 21 23 1 91 2 45 16 44 43 58 135 118 5 13 30 Missed 240 | . 6 6 8 1 24 . 19 4 11 17 23 63 33 3 7 15 Hits 420 | . 9 15 15 . 67 2 26 12 33 26 35 72 85 2 6 15 Melee 11 | . . . . . 2 . 1 . . . 7 1 . . . . Projectile 409 | . 9 15 15 . 65 2 25 12 33 26 28 71 85 2 6 15 AOE 1 | . . . . . . . . . . . . 1 . . . . Critical Strikes 16 | . . . 1 . 1 1 . 1 1 . 1 4 5 . . 1 Part Disruptions 1 | . . . . . . . . . . . . . . . 1 . Damage Taken 7068 | . 133 151 187 . 839 33 193 181 334 308 872 1970 1361 35 262 209 Core 2377 | . 30 10 58 . 266 15 68 91 142 177 512 447 184 16 173 188 Absorbed by Shields 75 | . . . . . . . 75 . . . . . . . . . Redirected to Shielding 104 | . . . . . 104 . . . . . . . . . . . Regen/Repaired (Parts) 873 | . . . . 20 . . . . . . . 853 . . . . Core Remaining (%) 64 | 100 . 84 85 . . . 36 . 66 . 18 . . . . . Volleys Fired 54 | . 16 8 6 . . . . 18 . . 2 3 1 . . . Largest 2 | . 2 2 1 . . . . 2 . . 1 1 1 . . . Hottest 80 | . 70 70 50 . . . . 80 . . 5 5 7 . . . Shots Fired 93 | . 31 16 6 . . . . 34 . . 2 3 1 . . . Gun 85 | . 31 16 6 . . . . 32 . . . . . . . . Cannon 2 | . . . . . . . . 2 . . . . . . . . Launcher . | . . . . . . . . . . . . . . . . . Special 6 | . . . . . . . . . . . 2 3 1 . . . Kinetic 24 | . 16 8 . . . . . . . . . . . . . . Thermal 61 | . 15 8 6 . . . . 32 . . . . . . . . Explosive . | . . . . . . . . . . . . . . . . . Electromagnetic 2 | . . . . . . . . 2 . . . . . . . . Robot Hit Streak 7 | . 5 7 3 . . . . . . . 4 2 . . . . Robot Miss Streak 5 | . 3 5 2 . . . . . . . . 1 1 . . . Penetration Max . | . . . . . . . . . . . . . . . . . Secondary Targets 1 | . 1 . . . . . . . . . . . . . . . Max Gunslinging Chain 1 | . 1 . . . . . . . . . . . . . . . Shots Hit Robots 258 | . 20 7 17 . 30 . 4 11 21 26 20 78 24 . . . Core Hits 109 | . 6 7 2 . 13 . 2 6 10 14 6 33 10 . . . Critical Kills . | . . . . . . . . . . . . . . . . . Critical Parts Destroyed 2 | . . . 2 . . . . . . . . . . . . . Critical Strikes 29 | . . 1 3 . 6 . 1 . 1 1 3 9 4 . . . Burn 2 | . . 1 1 . . . . . . . . . . . . . Smash 2 | . . . 2 . . . . . . . . . . . . . Sever 13 | . . . . . 6 . 1 . 1 1 3 1 . . . . Impale 12 | . . . . . . . . . . . . 8 4 . . . Melee Attacks 364 | . 1 . 17 10 60 3 11 22 24 35 42 105 33 . 1 . Impact 24 | . 1 . 17 6 . . . . . . . . . . . . Slashing 212 | . . . . 4 60 3 11 22 24 35 37 15 1 . . . Piercing 128 | . . . . . . . . . . . 5 90 32 . 1 . Sneak Attacks 17 | . . . 2 . . . . 2 4 3 . 6 . . . . Combat Hostiles 1 | . . . . . . . . . . . . 1 . . . . Follow-up Attacks 9 | . . . . . . . . . 3 1 1 3 1 . . . Damage Inflicted 12192 | . 261 131 689 . 1376 . 133 545 1059 1258 580 4859 1301 . . . Guns 422 | . 261 125 36 . . . . . . . . . . . . . Cannons . | . . . . . . . . . . . . . . . . . Explosions . | . . . . . . . . . . . . . . . . . Melee 11764 | . . . 653 . 1376 . 133 545 1059 1258 580 4859 1301 . . . Ramming 6 | . . 6 . . . . . . . . . . . . . . Kinetic 174 | . 124 50 . . . . . . . . . . . . . . Thermal 248 | . 137 75 36 . . . . . . . . . . . . . Explosive . | . . . . . . . . . . . . . . . . . Electromagnetic . | . . . . . . . . . . . . . . . . . Impact 653 | . . . 653 . . . . . . . . . . . . . Slashing 5457 | . . . . . 1376 . 133 545 1059 1258 580 458 48 . . . Piercing 5654 | . . . . . . . . . . . . 4401 1253 . . . Highest Corruption 10 | . . . . 2 3 3 7 4 5 . . 7 10 10 10 2 Average Corruption 4 | . . . . 2 2 3 3 3 4 . . 5 8 10 6 2 Corruption Purged . | . . . . . . . . . . . . . . . . . Corruption Blocked . | . . . . . . . . . . . . . . . . . Effects 85 | . . . . . 8 1 3 11 7 . . 37 13 1 3 1 Message Errors 21 | . . . . . 5 1 . 3 2 . . 5 4 . 1 . Matter Fused 19 | . . . . . . . 1 2 . . . 12 3 . . 1 Heat Flow Errors 11 | . . . . . . . . 2 2 . . 4 2 1 . . Energy Discharges 12 | . . . . . . . 1 2 . . . 8 1 . . . Parts Rejected 1 | . . . . . . . . . . . . . 1 . . . Parts Fused 1 | . . . . . . . . . . . . 1 . . . . Data Loss (minor) 14 | . . . . . 2 . 1 2 1 . . 5 2 . 1 . Data Loss (major) 3 | . . . . . . . . . 2 . . 1 . . . . Alerts 3 | . . . . . 1 . . . . . . 1 . . 1 . Overload Shots . | . . . . . . . . . . . . . . . . . Overflow Damage 1530 | . . . 189 . 31 . . 23 174 100 . 803 210 . . . Projectiles . | . . . . . . . . . . . . . . . . . Explosions . | . . . . . . . . . . . . . . . . . Melee 1530 | . . . 189 . 31 . . 23 174 100 . 803 210 . . . Knockbacks . | . . . . . . . . . . . . . . . . . Impact . | . . . . . . . . . . . . . . . . . Kinetic . | . . . . . . . . . . . . . . . . . Secondary . | . . . . . . . . . . . . . . . . . Self-Inflicted Damage . | . . . . . . . . . . . . . . . . . Shots . | . . . . . . . . . . . . . . . . . Rammed . | . . . . . . . . . . . . . . . . . Targets Rammed 1 | . . 1 . . . . . . . . . . . . . . Kicked 1 | . . 1 . . . . . . . . . . . . . . Crushed . | . . . . . . . . . . . . . . . . . Highest Temperature 302 | . 2 70 3 . . 6 . 152 210 . . 302 254 122 269 . Average Temperature 62 | . 2 28 2 . . 6 . 18 88 . . 92 83 59 150 . Received Heat Transfer 1218 | . 78 27 72 . 180 27 22 . 93 48 54 578 12 18 . 9 Siege Activations . | . . . . . . . . . . . . . . . . . Martial Activations . | . . . . . . . . . . . . . . . . . Shielding Activations . | . . . . . . . . . . . . . . . . . Robots Disrupted . | . . . . . . . . . . . . . . . . . Combat Hostiles . | . . . . . . . . . . . . . . . . . Robots Corrupted 4 | . . . 4 . . . . . . . . . . . . . Combat Hostiles 2 | . . . 2 . . . . . . . . . . . . . Parts Fried 11 | . . . 11 . . . . . . . . . . . . . Impact Corruptions 8 | . . . 8 . . . . . . . . . . . . . Robots Melted . | . . . . . . . . . . . . . . . . . Combat Hostiles . | . . . . . . . . . . . . . . . . . Parts Melted . | . . . . . . . . . . . . . . . . . Heat Transferred 888 | . 407 296 185 . . . . . . . . . . . . . Parts Sabotaged 8 | . . . . . . . . . . . 8 . . . . . Parts Stolen . | . . . . . . . . . . . . . . . . . Parts Stripped . | . . . . . . . . . . . . . . . . . Power Chain Reactions . | . . . . . . . . . . . . . . . . . Alert | -11 -10 -10 -9 -8 -8 -8 -8 -7 -7 -6 -6 -5 -5 -5 -5 -4 ------- Run | Yrd Mat Min Mat Mat Gar Mat Gar Fac Gar Fac Gar Fac Upp Upp War Pro Maximum Alert Level 1 | . . . . . 1 1 1 . 1 . . 1 . . . . Low Security (%) 87 | 100 100 100 100 100 50 82 33 100 57 100 100 93 . . . . Level 1 12 | . . . . . 49 18 66 . 42 . . 6 . . . . Level 2 . | . . . . . . . . . . . . . . . . . Level 3 . | . . . . . . . . . . . . . . . . . Level 4 . | . . . . . . . . . . . . . . . . . Level 5 . | . . . . . . . . . . . . . . . . . High Security . | . . . . . . . . . . . . . . . . . Max Security . | . . . . . . . . . . . . . . . . . Peak Influence 390 | . 35 104 91 60 390 202 370 193 329 172 99 230 . . . . Initial 193 | . . 5 27 33 . 189 131 193 44 172 20 8 . . . . Average 86 | . 8 16 32 23 205 187 243 13 153 87 58 111 . . . . Influence Increases 3799 | . 72 135 191 108 580 33 259 280 325 301 126 883 458 36 . 12 Destroy 0b10 Robot/C 1440 | . 40 80 60 . 260 . 40 20 180 160 45 345 210 . . . Destroy 0b10 Robot/NC 148 | . 5 5 15 . 15 . . 25 5 30 . 48 . . . . Destroy Leader 226 | . 12 20 24 . 10 . 10 16 . 26 . 76 32 . . . Allied During Kill 36 | . . . . . 19 . . . 9 8 . . . . . . Successful Hack 149 | . . . . 9 . . 18 62 16 . . 44 . . . . Disable Machine 60 | . 15 . . 15 . . . 15 . 15 . . . . . . Anti-Garrison Action 238 | . . . . . 100 . 50 . 50 . 38 . . . . . Destroy Structure 143 | . . . 2 9 56 3 6 7 5 2 19 34 . . . . Partial Spotted 171 | . . . . 15 15 30 . 45 . 30 24 12 . . . . Lose Combat Pursuer 1188 | . . 30 90 60 105 . 135 90 60 30 . 324 216 36 . 12 Influence Decreases 3799 | . 57 78 182 188 191 221 91 586 60 601 139 719 403 66 205 12 Entered New Map 1065 | . . 10 45 48 1 201 71 177 20 157 9 8 67 46 205 . Time Decay 1572 | . 57 58 117 140 . 20 . 259 . 204 . 481 206 20 . 10 Lost Part 472 | . . 10 20 . 70 . 20 . 20 30 90 80 130 . . 2 Lost Ally 240 | . . . . . 120 . . . 20 60 40 . . . . . Purge Threat 450 | . . . . . . . . 150 . 150 . 150 . . . . Squads Dispatched 22 | . . . 2 . . . . 6 . 2 . 12 . . . . Investigation 9 | . . . . . . . . 4 . . . 5 . . . . Extermination 6 | . . . . . . . . 2 . . . 4 . . . . Reinforcement 7 | . . . 2 . . . . . . 2 . 3 . . . . Assault . | . . . . . . . . . . . . . . . . . Garrison . | . . . . . . . . . . . . . . . . . Intercept . | . . . . . . . . . . . . . . . . . Searches Triggered . | . . . . . . . . . . . . . . . . . Construction Impeded . | . . . . . . . . . . . . . . . . . Haulers Reinforced 1 | . . . . . . . . . . 1 . . . . . . Active Scanning Responses . | . . . . . . . . . . . . . . . . . Cargo Convoy Interrupts 1 | . . . . . . . . . . . . 1 . . . . Stealth | -11 -10 -10 -9 -8 -8 -8 -8 -7 -7 -6 -6 -5 -5 -5 -5 -4 --------- Run | Yrd Mat Min Mat Mat Gar Mat Gar Fac Gar Fac Gar Fac Upp Upp War Pro Distress Signals 7 | . . . 3 1 . . . 1 . . . 2 . . . . Communications Jammed . | . . . . . . . . . . . . . . . . . Distress Signals . | . . . . . . . . . . . . . . . . . Times Spotted 224 | . 3 6 18 3 17 1 17 18 12 18 13 60 21 4 2 11 Peak Tracking Total 10 | . 2 5 7 5 6 1 7 3 5 7 8 8 10 5 2 7 Tactical Retreats 44 | . . 2 4 2 4 . 3 4 2 1 . 14 6 1 . 1 Traps | -11 -10 -10 -9 -8 -8 -8 -8 -7 -7 -6 -6 -5 -5 -5 -5 -4 ------- Run | Yrd Mat Min Mat Mat Gar Mat Gar Fac Gar Fac Gar Fac Upp Upp War Pro Traps Triggered 10 | . . . . 1 . . 1 . 1 . 2 3 . . 2 . Indirectly . | . . . . . . . . . . . . . . . . . Trap Hack Attempts . | . . . . . . . . . . . . . . . . . Triggered . | . . . . . . . . . . . . . . . . . Disarmed . | . . . . . . . . . . . . . . . . . Reprogrammed . | . . . . . . . . . . . . . . . . . Reused . | . . . . . . . . . . . . . . . . . Traps Extracted . | . . . . . . . . . . . . . . . . . Installed . | . . . . . . . . . . . . . . . . . Triggered . | . . . . . . . . . . . . . . . . . Machines | -11 -10 -10 -9 -8 -8 -8 -8 -7 -7 -6 -6 -5 -5 -5 -5 -4 ---------- Run | Yrd Mat Min Mat Mat Gar Mat Gar Fac Gar Fac Gar Fac Upp Upp War Pro Machines Disabled 8 | . 1 . . 1 1 . 1 1 1 1 1 . . . . . Max in Single Turn 1 | . 1 . . 1 1 . 1 1 1 1 1 . . . . . Garrison Access 1 | . . . . . . . . . . . . 1 . . . . Garrison Relay 4 | . . . . . 1 . 1 . 1 . 1 . . . . . Machines Repaired . | . . . . . . . . . . . . . . . . . Machines Dismantled . | . . . . . . . . . . . . . . . . . Machines Sabotaged . | . . . . . . . . . . . . . . . . . Overloaded Fab Kills . | . . . . . . . . . . . . . . . . . Hacking | -11 -10 -10 -9 -8 -8 -8 -8 -7 -7 -6 -6 -5 -5 -5 -5 -4 --------- Run | Yrd Mat Min Mat Mat Gar Mat Gar Fac Gar Fac Gar Fac Upp Upp War Pro Machines Accessed 51 | . . . 2 6 2 1 2 14 2 5 . 16 1 . . . Terminals 29 | . . . 2 3 2 . 2 8 2 4 . 6 . . . . Fabricators 4 | . . . . . . . . 1 . . . 3 . . . . Repair Stations 5 | . . . . 1 . . . 2 . . . 2 . . . . Recycling Units 4 | . . . . . . . . 1 . . . 3 . . . . Scanalyzers 3 | . . . . 1 . . . 1 . . . 1 . . . . Garrison Access 5 | . . . . 1 . 1 . 1 . 1 . 1 . . . . Total Hacks 157 | . . . 2 19 7 1 8 54 3 16 . 46 1 . . . Successful 57 | . . . . 8 1 1 2 15 2 7 . 20 1 . . . Failed 99 | . . . 2 11 6 . 6 39 1 8 . 26 . . . . Catastrophic 31 | . . . . 4 1 . . 12 . 4 . 10 . . . . Database Lockouts 1 | . . . . . . . . . . 1 . . . . . . Manual 75 | . . . 2 10 . . 8 25 2 14 . 14 . . . . Terminals 107 | . . . 2 14 7 . 8 38 3 15 . 20 . . . . Fabricators 11 | . . . . . . . . 3 . . . 8 . . . . Repair Stations 17 | . . . . 3 . . . 5 . . . 9 . . . . Recycling Units 6 | . . . . . . . . 3 . . . 3 . . . . Scanalyzers 10 | . . . . 1 . . . 4 . . . 5 . . . . Garrison Access 5 | . . . . 1 . 1 . 1 . 1 . 1 . . . . Terminal Hacks 25 | . . . . 4 1 . 2 6 2 6 . 3 1 . . . Part Schematic 3 | . . . . . . . . 1 . . . 2 . . . . Robot Analysis 3 | . . . . . . . . . . 3 . . . . . . Prototype ID Bank 2 | . . . . 1 . . . 1 . . . . . . . . Open Door 2 | . . . . . . . . . 1 . . . 1 . . . Open DSF 1 | . . . . . . . . . . 1 . . . . . . Fabricator Index 1 | . . . . . . . . 1 . . . . . . . . Unreport Threat 3 | . . . . . . . . 1 . 1 . 1 . . . . Locate Traps 1 | . . . . 1 . . . . . . . . . . . . Recall Investigation 1 | . . . . . . . . 1 . . . . . . . . Registered Components 3 | . . . . 1 . . . 1 . 1 . . . . . . Registered Prototypes 1 | . . . . 1 . . . . . . . . . . . . Garrison Registry 3 | . . . . . 1 . 1 . 1 . . . . . . . Patrol Navigation 1 | . . . . . . . 1 . . . . . . . . . Fabricator Hacks 8 | . . . . . . . . 2 . . . 6 . . . . Load Schematic 4 | . . . . . . . . 1 . . . 3 . . . . Build 4 | . . . . . . . . 1 . . . 3 . . . . Repair Station Hacks 10 | . . . . 2 . . . 2 . . . 6 . . . . Scan Component 5 | . . . . 1 . . . 1 . . . 3 . . . . Repair 4 | . . . . 1 . . . . . . . 3 . . . . Refit 1 | . . . . . . . . 1 . . . . . . . . Recycling Unit Hacks 2 | . . . . . . . . 1 . . . 1 . . . . Retrieve Components 2 | . . . . . . . . 1 . . . 1 . . . . Scanalyzer 7 | . . . . 1 . . . 3 . . . 3 . . . . Insert Component 1 | . . . . . . . . . . . . 1 . . . . Analyze 1 | . . . . . . . . . . . . 1 . . . . Retrieve Study 5 | . . . . 1 . . . 3 . . . 1 . . . . Garrison Access Hacks 5 | . . . . 1 . 1 . 1 . 1 . 1 . . . . Unlock Access 4 | . . . . 1 . 1 . 1 . 1 . . . . . . Seal Access 1 | . . . . . . . . . . . . 1 . . . . Unauthorized Hacks . | . . . . . . . . . . . . . . . . . Terminals . | . . . . . . . . . . . . . . . . . Fabricators . | . . . . . . . . . . . . . . . . . Repair Stations . | . . . . . . . . . . . . . . . . . Recycling Units . | . . . . . . . . . . . . . . . . . Scanalyzers . | . . . . . . . . . . . . . . . . . Garrison Access . | . . . . . . . . . . . . . . . . . Data Cores Recovered 2 | . . . . . . . . 1 . . . 1 . . . . Used 1 | . . . . . . . . . . . . 1 . . . . Hacking Detections 37 | . . . 2 3 2 . 2 12 1 3 . 12 . . . . Full Trace Events 10 | . . . . . 1 . . 4 . . . 5 . . . . Feedback Events 1 | . . . . . . . . 1 . . . . . . . . Hackware Fried 1 | . . . . . . . . 1 . . . . . . . . Feedback Blocked . | . . . . . . . . . . . . . . . . . Robot Schematics Acquired . | . . . . . . . . . . . . . . . . . Robots Built . | . . . . . . . . . . . . . . . . . Authchips . | . . . . . . . . . . . . . . . . . Time . | . . . . . . . . . . . . . . . . . Total Robot Build Rating . | . . . . . . . . . . . . . . . . . Part Schematics Acquired 4 | . . . . . . . . 1 . . . 3 . . . . Parts Built 8 | . . . . . . . . 2 . . . 6 . . . . Authchips . | . . . . . . . . . . . . . . . . . Time 360 | . . . . . . . . 42 . . . 318 . . . . Total Part Build Rating 44 | . . . . . . . . 8 . . . 36 . . . . Part Studies Acquired 5 | . . . . 1 . . . 3 . . . 1 . . . . Parts Repaired 4 | . . . . 1 . . . . . . . 3 . . . . Time 353 | . . . . 38 . . . . . . . 315 . . . . Parts Recycled . | . . . . . . . . . . . . . . . . . Recycled Matter . | . . . . . . . . . . . . . . . . . Retrieved Matter . | . . . . . . . . . . . . . . . . . Retrieved Components 3 | . . . . . . . . 2 . . . 1 . . . . Parts Scanalyzed 1 | . . . . . . . . . . . . 1 . . . . Part Schematics Acquired 1 | . . . . . . . . . . . . 1 . . . . Parts Damaged . | . . . . . . . . . . . . . . . . . Bothacking | -11 -10 -10 -9 -8 -8 -8 -8 -7 -7 -6 -6 -5 -5 -5 -5 -4 ------------ Run | Yrd Mat Min Mat Mat Gar Mat Gar Fac Gar Fac Gar Fac Upp Upp War Pro Used RIF Installer 5 | . . . . . 2 . 1 . 1 . 1 . . . . . Threat Obfuscator 1 | . . . . . . . . . . . 1 . . . . . Watcher Feeds 1 | . . . . . . . . . 1 . . . . . . . Structural Interface 1 | . . . . . . . 1 . . . . . . . . . Program Shield 1 | . . . . . 1 . . . . . . . . . . . Robots Hacked 3 | . . . . . . . . . . . 1 2 . . . . Non-combat 2 | . . . . . . . . . . . . 2 . . . . Combat 1 | . . . . . . . . . . . 1 . . . . . Robot Hacks Applied 3 | . . . . . . . . . . . 1 2 . . . . no_distress 2 | . . . . . . . . . . . . 2 . . . . formatsys_high 1 | . . . . . . . . . . . 1 . . . . . Relay Couplers Released 14 | . . . . . 3 . 3 . 4 . 4 . . . . . Machine Destruction 14 | . . . . . 3 . 3 . 4 . 4 . . . . . Attached 2 | . . . . . . . . . . . 2 . . . . . Fabnet Peak Effective % . | . . . . . . . . . . . . . . . . . Robots Rewired 12 | . . . . . 6 . . . 2 3 1 . . . . . Allies Hacked . | . . . . . . . . . . . . . . . . . Hacks Repelled . | . . . . . . . . . . . . . . . . . Allies | -11 -10 -10 -9 -8 -8 -8 -8 -7 -7 -6 -6 -5 -5 -5 -5 -4 -------- Run | Yrd Mat Min Mat Mat Gar Mat Gar Fac Gar Fac Gar Fac Upp Upp War Pro Total Allies 13 | . . . . . 6 . . . 2 3 2 . . . . . Largest Group 6 | . . . . . 6 . . . 2 2 1 . . . . . Highest-Rated Group 99 | . . . . . 45 . . . 51 58 99 . . . . . Highest-Rated Ally 99 | . . . . . 10 . . . 31 29 99 . . . . . Total Orders 3 | . . . . . 2 . . . 1 . . . . . . . STAY 2 | . . . . . 1 . . . 1 . . . . . . . FOLLOW 1 | . . . . . 1 . . . . . . . . . . . Ally Attacks 51 | . . . . . 28 . . . 9 9 5 . . . . . Total Damage 698 | . . . . . 349 . . . 62 150 137 . . . . . Kills 3 | . . . . . 2 . . . . 1 . . . . . . Allies Corrupted . | . . . . . . . . . . . . . . . . . Allies Melted . | . . . . . . . . . . . . . . . . . Intel | -11 -10 -10 -9 -8 -8 -8 -8 -7 -7 -6 -6 -5 -5 -5 -5 -4 ------- Run | Yrd Mat Min Mat Mat Gar Mat Gar Fac Gar Fac Gar Fac Upp Upp War Pro Active Infowar (turns) 1662 | . . . 14 363 271 37 267 489 1 220 . . . . . . Sensors 722 | . . . 14 363 25 37 . 283 . . . . . . . . Traps 1247 | . . . . . 270 . 267 489 1 220 . . . . . . Robot Analysis Total 3 | . . . . . . . . . . 3 . . . . . . Derelict Logs Recovered 6 | . . 2 . . . . . . . . . . 1 2 . 1 Drone Launches . | . . . . . . . . . . . . . . . . . Drone Recoveries . | . . . . . . . . . . . . . . . . . Exploration | -11 -10 -10 -9 -8 -8 -8 -8 -7 -7 -6 -6 -5 -5 -5 -5 -4 ------------- Run | Yrd Mat Min Mat Mat Gar Mat Gar Fac Gar Fac Gar Fac Upp Upp War Pro Turns Passed 7392 | 81 183 618 257 373 707 50 285 1143 326 509 401 1645 421 57 139 197 Spaces Moved 10934 | 50 91 387 383 688 739 71 377 1730 382 857 468 2939 891 184 244 453 Core 21 | 5 . . . . . . . . . . 5 . . . . 11 Treads . | . . . . . . . . . . . . . . . . . Legs 522 | 45 91 386 . . . . . . . . . . . . . . Wheels . | . . . . . . . . . . . . . . . . . Hover . | . . . . . . . . . . . . . . . . . Flight 10391 | . . 1 383 688 739 71 377 1730 382 857 463 2939 891 184 244 442 Fastest Speed 27 | 50 120 37 37 32 32 34 34 34 34 30 29 27 31 31 31 42 Average Speed 39 | 113 132 128 37 34 33 34 34 43 37 33 30 29 35 31 32 42 Slowest Speed 235 | 120 190 190 40 37 37 34 37 110 112 40 50 114 235 31 42 55 Overloaded Moves . | . . . . . . . . . . . . . . . . . Propulsion Burnouts . | . . . . . . . . . . . . . . . . . Robots Hopped 31 | . . . . . . . 1 9 . 5 4 12 . . . . Potential Cave-ins . | . . . . . . . . . . . . . . . . . Cave-ins Triggered . | . . . . . . . . . . . . . . . . . Exploration Rate (%) 39 | 4 15 71 36 32 67 5 59 29 48 25 50 47 81 35 22 41 Regions Visited 16 Branch Regions 5 Pre-discovered Areas 1 | . . . . . . . . . . . . . . 1 . . Known Exits Taken 8 | . . 1 . 1 . 1 . 1 . 1 . . 1 1 1 . Unknown Exits Taken 4 | 1 1 . 1 . . . . . . . . 1 . . . . Scrap Searched 8 | . . 1 . . . . . . . . . . 2 3 . 2 Spaces Dug 61 | . . . 2 9 1 3 1 7 . 2 17 17 1 . 1 . Terrain Destroyed 61 | . . . 2 9 1 3 1 7 . 2 17 17 1 . 1 . Melee 61 | . . . 2 9 1 3 1 7 . 2 17 17 1 . 1 . Projectile . | . . . . . . . . . . . . . . . . . AOE . | . . . . . . . . . . . . . . . . . Terrain Rammed . | . . . . . . . . . . . . . . . . . Walls Destroyed . | . . . . . . . . . . . . . . . . . Machines Disabled . | . . . . . . . . . . . . . . . . . Actions | -11 -10 -10 -9 -8 -8 -8 -8 -7 -7 -6 -6 -5 -5 -5 -5 -4 --------- Run | Yrd Mat Min Mat Mat Gar Mat Gar Fac Gar Fac Gar Fac Upp Upp War Pro Total 13380 | 72 120 494 460 806 1086 91 512 2056 532 1038 669 3556 949 183 301 455 Wait 1586 | 16 2 84 22 90 206 16 97 248 104 107 97 438 2 . 57 . Move 10863 | 49 90 386 382 688 738 71 374 1712 381 847 461 2915 890 183 243 453 Hop 28 | . . . . . . . 1 9 . 5 2 11 . . . . Pick Up 52 | 1 7 2 4 2 3 . 3 5 2 5 4 11 2 . . 1 Fast Attach 104 | 5 1 1 9 8 4 . 2 14 . 8 15 29 8 . . . Attach 49 | 1 . 2 5 1 6 . . 7 1 3 4 13 6 . . . Detach 35 | . . 2 5 1 4 . . 6 1 . 3 9 4 . . . Swap 47 | . 2 2 2 1 8 1 4 2 . 6 5 12 2 . . . Drop 74 | . 1 6 8 5 2 . 5 14 1 10 4 15 2 . . 1 Fire 54 | . 16 8 6 . . . . 18 . . 2 3 1 . . . Melee 349 | . 1 . 17 10 60 3 11 21 20 32 41 100 32 . 1 . Ram . | . . . . . . . . . . . . . . . . . Kick 1 | . . 1 . . . . . . . . . . . . . . Crush . | . . . . . . . . . . . . . . . . . Escape Stasis 60 | . . . . . . . 15 . 15 . 30 . . . . . Rewire 78 | . . . . . 55 . . . 7 15 1 . . . . . Trap . | . . . . . . . . . . . . . . . . . Miscellaneous . | . . . . . . . . . . . . . . . . . Route ------- -11/Scrapyard -10/Materials -10/Mines (discovered 3 exits: *Mat x2 / *Sub) -9/Materials -8/Materials -8/Garrison (discovered 3 exits: *Mat x3) -8/Materials -8/Garrison (discovered 3 exits: *Fac x3) -7/Factory (discovered 4 exits: *Fac x2 / [*Low] / Gar) -7/Garrison (discovered 3 exits: *Fac x3) -6/Factory (discovered 2 exits: [*Low] / Gar) -6/Garrison -5/Factory (discovered 2 exits: [*Fac] / *Upp) -5/Upper Caves -5/Upper Caves -5/Warlord -4/Proximity Caves History --------- Turn | Location | Event 31 | -11/Scrapyard | Discovered new exit (range 14) 82 | -11/Scrapyard | Entered Materials 129 | -10/Materials | Discovered new exit (range 16) 265 | -10/Materials | Entered Mines 307 | -10/Mines | Build established: Mutant 334 | -10/Mines | Discovered new exit (range 8) 343 | -10/Mines | Identified exit to Materials 386 | -10/Mines | Discovered new exit (range 11) 390 | -10/Mines | Received a Rocket Launcher from a helpful Derelict 397 | -10/Mines | Identified exit to Subcaves 510 | -10/Mines | Discovered exit to Materials (range 7) 511 | -10/Mines | Learned Materials emergency access door positions 612 | -10/Mines | Learned 2 Materials zone layouts 883 | -10/Mines | Entered Materials 883 | -9/Materials | Evolved 2 slots: Utility x2 1134 | -9/Materials | Discovered new exit (range 15) 1140 | -9/Materials | Entered another Materials area 1140 | -8/Materials | Evolved 2 slots: Propulsion x1, Utility x1 1367 | -8/Materials | Build established: Hacker-Mutant 1461 | -8/Materials | Repaired Cesium-ion Thruster 1513 | -8/Materials | Identified exit to Garrison 1513 | -8/Materials | Entered Garrison 1757 | -8/Garrison | Discovered new exit (range 91) 1757 | -8/Garrison | Discovered new exit (range 59) 1757 | -8/Garrison | Discovered new exit (range 13) 1866 | -8/Garrison | Garrison Relay disabled 1913 | -8/Garrison | Triggered checkpoint 1960 | -8/Garrison | Triggered checkpoint 1969 | -8/Garrison | Lost 4 parts (1p1n2u) 1977 | -8/Garrison | Lost 6 allies 2052 | -8/Garrison | Installed Relay Interface Framework 2146 | -8/Garrison | Expanded RIF knowledge: Program Shield 2220 | -8/Garrison | Entered Materials 2264 | -8/Materials | Core integrity fell below 50% 2270 | -8/Materials | Identified exit to Garrison 2270 | -8/Materials | Entered Garrison 2303 | -8/Garrison | Expanded RIF knowledge: Structural Interface 2328 | -8/Garrison | Garrison Relay disabled 2365 | -8/Garrison | Discovered new exit (range 36) 2365 | -8/Garrison | Discovered new exit (range 29) 2365 | -8/Garrison | Discovered new exit (range 53) 2555 | -8/Garrison | Entered Factory 2555 | -7/Factory | Evolved 2 slots: Utility x2 2681 | -7/Factory | System Shield fried by hacking feedback 3177 | -7/Factory | Discovered new exit (range 7) 3206 | -7/Factory | Discovered new exit (range 16) 3452 | -7/Factory | Discovered new exit (range 15) 3661 | -7/Factory | Fabricated Xenon Bombardment Thruster (x2) 3698 | -7/Factory | Identified exit to Garrison 3698 | -7/Factory | Entered Garrison 3719 | -7/Garrison | Discovered new exit (range 30) 3719 | -7/Garrison | Discovered new exit (range 66) 3719 | -7/Garrison | Discovered new exit (range 53) 3865 | -7/Garrison | Garrison Relay disabled 3873 | -7/Garrison | Expanded RIF knowledge: Watcher Feeds 3880 | -7/Garrison | Triggered checkpoint 3953 | -7/Garrison | Build established: Hacker-Gladiator 4024 | -7/Garrison | Entered Factory 4024 | -6/Factory | Evolved 2 slots: Utility x2 4082 | -6/Factory | Identified exit to DSF 4320 | -6/Factory | Central database locked down 4512 | -6/Factory | Discovered new exit (range 6) 4533 | -6/Factory | Identified exit to Garrison 4533 | -6/Factory | Entered Garrison 4546 | -6/Garrison | Expanded RIF knowledge: Threat Obfuscation 4566 | -6/Garrison | Build established: Hacker-Sprinter 4577 | -6/Garrison | Garrison Relay disabled 4587 | -6/Garrison | Spotted B-75 Beast 4624 | -6/Garrison | Triggered checkpoint 4679 | -6/Garrison | Triggered checkpoint 4737 | -6/Garrison | Spotted Striker 4738 | -6/Garrison | Spotted Striker 4747 | -6/Garrison | Destroyed Striker 4756 | -6/Garrison | Core integrity fell below 50% 4778 | -6/Garrison | Destroyed Striker 4808 | -6/Garrison | Lost 7 parts (1p2n3u1w) 4885 | -6/Garrison | Rewired Striker 4907 | -6/Garrison | Discovered new exit (range 10) 4911 | -6/Garrison | Triggered checkpoint 4934 | -6/Garrison | Entered Factory 4934 | -5/Factory | Evolved 2 slots: Power x1, Propulsion x1 5027 | -5/Factory | Fabricated Xenon Bombardment Thruster (x2) 5070 | -5/Factory | Discovered new exit (range 5) 5110 | -5/Factory | Spotted B-75 Beast 5141 | -5/Factory | Lost 5 parts (2p2n1u) 5364 | -5/Factory | Lost 3 parts (1p2u) 5491 | -5/Factory | Repaired Plasma Lance 5600 | -5/Factory | Repaired Centrium Light Armor Plating 5711 | -5/Factory | Repaired Centrium Light Armor Plating 5844 | -5/Factory | Fabricated Impulse Thruster? 6113 | -5/Factory | Fabricated Impulse Thruster? 6148 | -5/Factory | Cargo convoy interrupted 6227 | -5/Factory | Discovered new exit (range 5) 6579 | -5/Factory | Entered Upper Caves 6587 | -5/Upper Caves | Spotted B-75 Beast 6629 | -5/Upper Caves | Core integrity fell below 50% 6709 | -5/Upper Caves | Encountered a Warlord checkpoint 6820 | -5/Upper Caves | System corruption reached 10% 6853 | -5/Upper Caves | Lost 3 parts (2n1u) 6988 | -5/Upper Caves | Discovered new exit (range 4) 6991 | -5/Upper Caves | Identified exit to Upper Caves 6997 | -5/Upper Caves | Lost 6 parts (3n3u) 7000 | -5/Upper Caves | Entered another Upper Caves area 7001 | -5/Upper Caves | Identified exit to Warlord 7001 | -5/Upper Caves | Learned location of Armory (-3) 7049 | -5/Upper Caves | Learned Factory security intel 7057 | -5/Upper Caves | Entered Warlord 7090 | -5/Warlord | Discovered new exit (range 8) 7093 | -5/Warlord | Identified exit to Proximity Caves 7129 | -5/Warlord | System corruption cleaned by Quarantine Array 7131 | -5/Warlord | RIF detected upon attempting to enter Warlord's base 7131 | -5/Warlord | Attacked by Warlord forces 7134 | -5/Warlord | Spotted AT-XEB(B) 7134 | -5/Warlord | Spotted DQ-57H(B) 7147 | -5/Warlord | Core integrity fell below 20% 7177 | -5/Warlord | Lost 6 parts (1p2n2u1w) 7196 | -5/Warlord | Entered Proximity Caves 7290 | -4/Proximity Caves | Attracted the attention of an 0b10 checkpoint 7339 | -4/Proximity Caves | Learned Research garrison access intel 7343 | -4/Proximity Caves | Spotted B-86 Titan 7393 | -4/Proximity Caves | Destroyed by S-27 Virus with Autogun Last Messages --------------- 07196_ Found 55 Matter. 07197_ Acquired Recalibrator. 07270_ System corrupted: Matter fused (-7). 07290_ Y-64 Sentinel: "INTERCEPTING UNREGISTERED DERELICT." 07296_ Acquired 7 matter. 07336_ Searching scrap... 07336_ Found Imp. Remote Force Field. 07336_ Found Shock Absorption System. 07336_ Found Hvy. Gauss Cannon. 07336_ Found Imp. Weapon Cycler. 07336_ Found 56 Matter. 07339_ Acquired derelict log, extracted data. Data stored: Research garrison access intel. 07372_ VTOL Module destroyed. 07372_ Imp. Target Analyzer destroyed. 07372_ Critical hit (Blast). 07372_ Knocked back. 07375_ Slug penetrates Wall. 07387_ Dropped Mak. Flight Unit. Map ----- +----------------------------------------------------+ | ???# #???# ??????### ##??????# ## | | ???# ##??? ???????#### #??????# ### | | ??# #???# ###??????????# #????### #?##### | | ??# ####???####??????????? ###????# ##????# | | ?? ##??????????????????? #??????# ##???? | | ?#####??????????????????# #?????# ##### | | ????????????????????????# #????# # | | ????????????????????????# ##?## # | | ???????????????????????# ###"% # | | ?????????????????????## ### " | | ???????????????????? ### "" | | ???????????????????? "" # | | ??????????????????? ######## | | ??????????????????? #""" ##????? | | ?????????????????? #????? | | ?????????????????? #??##? | | ?????????????????? ## ### #? | | ?????????????????? ## ## ## | | ????????????????? ## # | | ??????????????????? =#### # | | ??????????????????????# ### ##??## # | | ??????????????????????# s??## ###????### ## | | ?????????????????????## ???##%!#????????#### ##? | | ?????????????????????# ##??# #???????????# ##?? | | ?????????????????????# ####n # ##???????###??? | | ?????????????????????# @ s #????????????? | | ?????????????????????# ## #???????????? | | ?????????????????????## ## ##???????????? | | ??????????????????????# ## # ##????????????? | | ??????????????????????# ?###########?????????????? | | ??????????????????????#??????????????????????????? | | ?????????????????????????????????????????????????? | | ?????????????????????????????????????????????????? | | ?????????????????????????????????????????????????? | | ?????????????????????????????????????????????????? | | ?????????????????????????????????????????????????? | | ?????????????????????????????????????????????????? | | ?????????????????????????????????????????????????? | | ?????????????????????????????????????????????????? | | ?????????????????????????????????????????????????? | | ?????????????????????????????????????????????????? | | ?????????????????????????????????????????????????? | | ?????????????????????????????????????????????????? | | ?????????????????????????????????????????????????? | | ?????????????????????????????????????????????????? | | ?????????????????????????????????????????????????? | | ?????????????????????????????????????????????????? | | ?????????????????????????????????????????????????? | | ?????????????????????????????????????????????????? | | ?????????????????????????????????????????????????? | +----------------------------------------------------+ Best States ------------- Heat Dissipation 40 Energy Generation 30 Energy Capacity 330 Matter Stores 300 Matter Capacity 300 Sight Range 16 Robot Scan Range 15 Terrain Scan Density 10 Armor Coverage 300 Propulsion Shielding 66 Melee Speed Boost 20 Phase Shifting 10 Evasion (%) 78 Melee Accuracy 32 Target Analysis 9 Core Analysis 6 Force Boost 20 Offensive Hacking 40 Defensive Hacking 42 Relay Coupler Types 2 Relay Coupler Value 48 Item Schematics ----------------- Xenon Bombardment Thruster | -7/Factory | Hacked Adv. Melee Analysis Suite | -5/Factory | Hacked Centrium Light Armor Plating | -5/Factory | Scanalyzed Impulse Thruster | -5/Factory | Hacked Robot Schematics ------------------ None Fabricated ------------ Xenon Bombardment Thruster | x2 | -7/Factory Xenon Bombardment Thruster | x2 | -5/Factory Impulse Thruster | x2 | -5/Factory Impulse Thruster | x2 | -5/Factory Repaired ---------- Cesium-ion Thruster | 20% | -8/Materials Plasma Lance | 15% | -5/Factory Centrium Light Armor Plating | 9% | -5/Factory Centrium Light Armor Plating | 14% | -5/Factory Studied --------- Hvy. Hammer | -8/Materials | Hacked Katana | -7/Factory | Hacked Mic. Nuclear Core | -7/Factory | Hacked Chainsword | -7/Factory | Hacked Xenon Bombardment Thruster | -5/Factory | Hacked Alien Tech Used ----------------- None Achievements -------------- Dodgeball, But With Guns Challenges ------------ None Game ------ Seed AlertIonProtection Manual? 0 Play Time 02:12:50 Cumulative 104.0 hours Start 2026.09.11 @ 16:33:39 End 2026.09.11 @ 21:28:36 Sessions 3 Manual Loads 0 Difficulty Rogue Special Mode None Game No. 117 Rogue 117 Adventurer 0 Explorer 0 Win Type - Total 0 Types 0/0/0/0/0/0/0/0/0/0 Lore% 44 Gallery% 50 Achievement% 41 Wizard Run 0 Options --------- Layout 1 ASCII 0 Keyboard 0 Movement Mouse Keybinds 0 Fullscreen 2 Font 24/Smallcaps Map View 50x35 Zoom Use 0% Tactical HUD 1 Map Filters NONE Filters NONE Steam 1 RUN: 71617045-e678-42f8-8577-a220b00210f1